[Event "Titled Tuesday Blitz August 16 Late 2022"]
[White "Vlassov, Nikolai"]
[Black "Badmatsyrenov, Oleg"]
[WhiteFideId "4103360"]
[BlackFideId "24115762"]
[WhiteElo "2324"]
[BlackElo "2403"]
[Result "1/2-1/2"]
[Round "05"]
[TimeControl "180+1"]
[Date "2022.08.16"]
[WhiteClock "0:00:05"]
[BlackClock "0:00:03"]

1. e4 {[%clk 0:03:00]}  c5 {[%clk 0:02:49]} 2. c3 {[%clk 0:03:00]}  d5 {[%clk 0:02:47]} 3. exd5 {[%clk 0:03:01]}  Qxd5 {[%clk 0:02:47]} 4. d4 {[%clk 0:03:01]}  Nf6 {[%clk 0:02:47]} 5. Nf3 {[%clk 0:03:02]}  Bg4 {[%clk 0:02:47]} 6. dxc5 {[%clk 0:03:02]}  Qxc5 {[%clk 0:02:46]} 7. h3 {[%clk 0:03:01]}  Bf5 {[%clk 0:02:46]} 8. Be3 {[%clk 0:03:00]}  Qc7 {[%clk 0:02:45]} 9. Na3 {[%clk 0:03:00]}  a6 {[%clk 0:02:45]} 10. Nc4 {[%clk 0:02:36]}  Nbd7 {[%clk 0:02:44]} 11. a4 {[%clk 0:02:32]}  e5 {[%clk 0:02:40]} 12. a5 {[%clk 0:02:27]}  Be7 {[%clk 0:02:27]} 13. Be2 {[%clk 0:02:24]}  O-O {[%clk 0:02:26]} 14. O-O {[%clk 0:02:24]}  Rfd8 {[%clk 0:02:16]} 15. Qb3 {[%clk 0:02:16]}  Be6 {[%clk 0:02:05]} 16. Ng5 {[%clk 0:02:14]}  Bd5 {[%clk 0:02:05]} 17. Qa4 {[%clk 0:02:04]}  Nc5 {[%clk 0:01:42]} 18. Bxc5 {[%clk 0:01:57]}  Bxc5 {[%clk 0:01:43]} 19. Rad1 {[%clk 0:01:48]}  e4 {[%clk 0:01:35]} 20. h4 {[%clk 0:01:14]}  h6 {[%clk 0:00:52]} 21. Nh3 {[%clk 0:01:13]}  Be6 {[%clk 0:00:32]} 22. Rxd8+ {[%clk 0:01:10]}  Rxd8 {[%clk 0:00:31]} 23. Rd1 {[%clk 0:00:54]}  Rxd1+ {[%clk 0:00:29]} 24. Qxd1 {[%clk 0:00:43]}  Bxh3 {[%clk 0:00:28]} 25. gxh3 {[%clk 0:00:43]}  Qg3+ {[%clk 0:00:27]} 26. Kh1 {[%clk 0:00:44]}  Qxh3+ {[%clk 0:00:27]} 27. Kg1 {[%clk 0:00:44]}  Qg3+ {[%clk 0:00:25]} 28. Kh1 {[%clk 0:00:44]}  Qxh4+ {[%clk 0:00:26]} 29. Kg2 {[%clk 0:00:43]}  Qxf2+ {[%clk 0:00:23]} 30. Kh1 {[%clk 0:00:44]}  Qh4+ {[%clk 0:00:17]} 31. Kg2 {[%clk 0:00:44]}  Qg5+ {[%clk 0:00:17]} 32. Kh1 {[%clk 0:00:42]}  Qh4+ {[%clk 0:00:14]} 33. Kg2 {[%clk 0:00:42]}  g6 {[%clk 0:00:15]} 34. b4 {[%clk 0:00:33]}  Ba7 {[%clk 0:00:13]} 35. Qd8+ {[%clk 0:00:26]}  Kg7 {[%clk 0:00:13]} 36. Nb6 {[%clk 0:00:26]}  Qg5+ {[%clk 0:00:12]} 37. Kf1 {[%clk 0:00:25]}  Bxb6 {[%clk 0:00:10]} 38. axb6 {[%clk 0:00:24]}  Nd5 {[%clk 0:00:11]} 39. Qxg5 {[%clk 0:00:14]}  hxg5 {[%clk 0:00:10]} 40. Bxa6 {[%clk 0:00:15]}  Nxb6 {[%clk 0:00:09]} 41. Bxb7 {[%clk 0:00:15]}  f5 {[%clk 0:00:09]} 42. Ba6 {[%clk 0:00:13]}  Kf6 {[%clk 0:00:09]} 43. c4 {[%clk 0:00:14]}  Ke7 {[%clk 0:00:09]} 44. c5 {[%clk 0:00:14]}  Nd5 {[%clk 0:00:09]} 45. b5 {[%clk 0:00:14]}  Kd8 {[%clk 0:00:09]} 46. b6 {[%clk 0:00:14]}  e3 {[%clk 0:00:04]} 47. Bc4 {[%clk 0:00:10]}  Nb4 {[%clk 0:00:04]} 48. Bf7 {[%clk 0:00:08]}  f4 {[%clk 0:00:04]} 49. Bxg6 {[%clk 0:00:09]}  g4 {[%clk 0:00:04]} 50. Bf5 {[%clk 0:00:08]}  g3 {[%clk 0:00:04]} 51. Be4 {[%clk 0:00:08]}  Na6 {[%clk 0:00:01]} 52. c6 {[%clk 0:00:08]}  Nc7 {[%clk 0:00:01]} 53. bxc7+ {[%clk 0:00:07]}  Kxc7 {[%clk 0:00:02]} 54. Ke2 {[%clk 0:00:07]}  Kd6 {[%clk 0:00:02]} 55. Bg2 {[%clk 0:00:06]}  Kc7 {[%clk 0:00:03]} 56. Kf3 {[%clk 0:00:05]}  Kd6 {[%clk 0:00:03]} 57. Ke2 {[%clk 0:00:04]}  Kc7 {[%clk 0:00:03]} 58. Bf3 {[%clk 0:00:05]}  Kd6 {[%clk 0:00:03]} 59. Bg2 {[%clk 0:00:05]} 1/2-1/2


[Site "https://www.chess.com"]

[Event "Titled Tuesday Blitz August 16 Late 2022"]
[White "Wachinger, Guenther"]
[Black "Blanco Ronquillo, Humberto L."]
[WhiteFideId "4604261"]
[BlackFideId "3504239"]
[WhiteElo "2212"]
[BlackElo "2425"]
[Result "1-0"]
[Round "05"]
[TimeControl "180+1"]
[Date "2022.08.18"]
[WhiteClock "0:00:00"]
[BlackClock "0:00:00"]

1. e4 {[%clk 0:00:00]}  c5 {[%clk 0:00:00]} 2. Nf3 {[%clk 0:00:00]}  Nc6 {[%clk 0:00:00]} 3. d4 {[%clk 0:00:00]}  cxd4 {[%clk 0:00:00]} 4. Nxd4 {[%clk 0:00:00]}  e5 {[%clk 0:00:00]} 5. Nb5 {[%clk 0:00:00]}  d6 {[%clk 0:00:00]} 6. N1c3 {[%clk 0:00:00]}  a6 {[%clk 0:00:00]} 7. Na3 {[%clk 0:00:00]}  Be7 {[%clk 0:00:00]} 8. Nd5 {[%clk 0:00:00]}  Nf6 {[%clk 0:00:00]} 9. Nxf6+ {[%clk 0:00:00]}  Bxf6 {[%clk 0:00:00]} 10. Nc4 {[%clk 0:00:00]}  O-O {[%clk 0:00:00]} 11. c3 {[%clk 0:00:00]}  Be7 {[%clk 0:00:00]} 12. Ne3 {[%clk 0:00:00]}  Be6 {[%clk 0:00:00]} 13. Be2 {[%clk 0:00:00]}  Rc8 {[%clk 0:00:00]} 14. O-O {[%clk 0:00:00]}  Bg5 {[%clk 0:00:00]} 15. Nd5 {[%clk 0:00:00]}  Bxc1 {[%clk 0:00:00]} 16. Rxc1 {[%clk 0:00:00]}  Ne7 {[%clk 0:00:00]} 17. Nxe7+ {[%clk 0:00:00]}  Qxe7 {[%clk 0:00:00]} 18. Qd2 {[%clk 0:00:00]}  Rc6 {[%clk 0:00:00]} 19. Rcd1 {[%clk 0:00:00]}  Bxa2 {[%clk 0:00:00]} 20. g3 {[%clk 0:00:00]}  Bb3 {[%clk 0:00:00]} 21. Ra1 {[%clk 0:00:00]}  Rd8 {[%clk 0:00:00]} 22. Bd1 {[%clk 0:00:00]}  Be6 {[%clk 0:00:00]} 23. Ba4 {[%clk 0:00:00]}  Rcc8 {[%clk 0:00:00]} 24. Rfd1 {[%clk 0:00:00]}  d5 {[%clk 0:00:00]} 25. exd5 {[%clk 0:00:00]}  Bxd5 {[%clk 0:00:00]} 26. Qe3 {[%clk 0:00:00]}  Qc7 {[%clk 0:00:00]} 27. Bc2 {[%clk 0:00:00]}  Be6 {[%clk 0:00:00]} 28. Qe4 {[%clk 0:00:00]}  g6 {[%clk 0:00:00]} 29. Re1 {[%clk 0:00:00]}  Rd2 {[%clk 0:00:00]} 30. Rac1 {[%clk 0:00:00]}  Bf5 {[%clk 0:00:00]} 31. Qa4 {[%clk 0:00:00]}  Qc5 {[%clk 0:00:00]} 32. Rf1 {[%clk 0:00:00]}  Bh3 {[%clk 0:00:00]} 33. Rcd1 {[%clk 0:00:00]}  Rcd8 {[%clk 0:00:00]} 34. Rxd2 {[%clk 0:00:00]}  Rxd2 {[%clk 0:00:00]} 35. Qe8+ {[%clk 0:00:00]}  Kg7 {[%clk 0:00:00]} 36. Bb3 {[%clk 0:00:00]}  Bxf1 {[%clk 0:00:00]} 37. Qxf7+ {[%clk 0:00:00]}  Kh6 {[%clk 0:00:00]} 38. Kxf1 {[%clk 0:00:00]}  Rxb2 {[%clk 0:00:00]} 39. h4 {[%clk 0:00:00]}  Rb1+ {[%clk 0:00:00]} 40. Kg2 {[%clk 0:00:00]}  Qc6+ {[%clk 0:00:00]} 41. Bd5 {[%clk 0:00:00]}  Qd6 {[%clk 0:00:00]} 42. g4 {[%clk 0:00:00]}  Rd1 {[%clk 0:00:00]} 43. Bf3 {[%clk 0:00:00]}  g5 {[%clk 0:00:00]} 44. h5 {[%clk 0:00:00]}  Rd3 {[%clk 0:00:00]} 45. Be4 {[%clk 0:00:00]} 1-0


[Site "https://www.chess.com"]

[Event "Titled Tuesday Blitz August 16 Late 2022"]
[White "Wadsworth, Matthew J"]
[Black "Zou, Chen"]
[WhiteFideId "415804"]
[BlackFideId "8610959"]
[WhiteElo "2294"]
[BlackElo "2276"]
[Result "0-1"]
[Round "05"]
[TimeControl "180+1"]
[Date "2022.08.16"]
[WhiteClock "0:00:24"]
[BlackClock "0:00:18"]

1. Nf3 {[%clk 0:03:00]}  Nf6 {[%clk 0:02:54]} 2. g3 {[%clk 0:03:00]}  g6 {[%clk 0:02:52]} 3. Bg2 {[%clk 0:03:00]}  Bg7 {[%clk 0:02:53]} 4. O-O {[%clk 0:03:01]}  O-O {[%clk 0:02:54]} 5. c4 {[%clk 0:03:02]}  d6 {[%clk 0:02:54]} 6. Nc3 {[%clk 0:03:02]}  e5 {[%clk 0:02:53]} 7. d3 {[%clk 0:03:01]}  Nc6 {[%clk 0:02:49]} 8. Rb1 {[%clk 0:03:01]}  a5 {[%clk 0:02:49]} 9. a3 {[%clk 0:02:59]}  h6 {[%clk 0:02:48]} 10. b4 {[%clk 0:02:58]}  axb4 {[%clk 0:02:49]} 11. axb4 {[%clk 0:02:58]}  Be6 {[%clk 0:02:50]} 12. b5 {[%clk 0:02:55]}  Ne7 {[%clk 0:02:48]} 13. Bb2 {[%clk 0:02:56]}  Qd7 {[%clk 0:02:46]} 14. Qb3 {[%clk 0:02:56]}  Bh3 {[%clk 0:02:45]} 15. Ra1 {[%clk 0:02:56]}  Bxg2 {[%clk 0:02:44]} 16. Kxg2 {[%clk 0:02:57]}  Kh7 {[%clk 0:02:29]} 17. Rxa8 {[%clk 0:02:56]}  Rxa8 {[%clk 0:02:30]} 18. Ra1 {[%clk 0:02:56]}  Rb8 {[%clk 0:02:15]} 19. Qa4 {[%clk 0:02:40]}  Qe8 {[%clk 0:02:12]} 20. Nd2 {[%clk 0:02:33]}  Nd7 {[%clk 0:02:05]} 21. Qc2 {[%clk 0:02:24]}  f5 {[%clk 0:02:04]} 22. e4 {[%clk 0:02:21]}  Nc5 {[%clk 0:02:00]} 23. Nb3 {[%clk 0:02:10]}  Ne6 {[%clk 0:01:59]} 24. Nd5 {[%clk 0:02:08]}  f4 {[%clk 0:01:46]} 25. f3 {[%clk 0:02:02]}  h5 {[%clk 0:01:41]} 26. Nc1 {[%clk 0:01:40]}  g5 {[%clk 0:01:36]} 27. Qf2 {[%clk 0:01:38]}  Ng6 {[%clk 0:01:30]} 28. Ne2 {[%clk 0:01:33]}  c6 {[%clk 0:01:26]} 29. Ndc3 {[%clk 0:01:31]}  g4 {[%clk 0:01:03]} 30. h3 {[%clk 0:01:18]}  h4 {[%clk 0:00:54]} 31. fxg4 {[%clk 0:01:10]}  hxg3 {[%clk 0:00:52]} 32. Nxg3 {[%clk 0:01:09]}  fxg3 {[%clk 0:00:51]} 33. Qxg3 {[%clk 0:01:07]}  Ngf4+ {[%clk 0:00:51]} 34. Kh2 {[%clk 0:01:06]}  Bf6 {[%clk 0:00:42]} 35. Bc1 {[%clk 0:01:00]}  Ra8 {[%clk 0:00:39]} 36. Rb1 {[%clk 0:00:49]}  Qe7 {[%clk 0:00:38]} 37. Qf3 {[%clk 0:00:42]}  Bh4 {[%clk 0:00:34]} 38. Ne2 {[%clk 0:00:40]}  Ra2 {[%clk 0:00:26]} 39. Rb2 {[%clk 0:00:40]}  Rxb2 {[%clk 0:00:26]} 40. Bxb2 {[%clk 0:00:40]}  Nxe2 {[%clk 0:00:22]} 41. Qxe2 {[%clk 0:00:39]}  Qf6 {[%clk 0:00:21]} 42. bxc6 {[%clk 0:00:36]}  bxc6 {[%clk 0:00:22]} 43. Bc1 {[%clk 0:00:30]}  Nd4 {[%clk 0:00:19]} 44. Qe3 {[%clk 0:00:27]}  Bg5 {[%clk 0:00:18]} 45. Qxg5 {[%clk 0:00:24]}  Nf3+ {[%clk 0:00:18]} 46. Kg3 {[%clk 0:00:24]}  Nxg5 {[%clk 0:00:18]} 0-1


[Site "https://www.chess.com"]

[Event "Titled Tuesday Blitz August 16 Late 2022"]
[White "Wieczorek, Oskar"]
[Black "Pichot, Alan"]
[WhiteFideId "1133950"]
[BlackFideId "110973"]
[WhiteElo "2302"]
[BlackElo "2578"]
[Result "1-0"]
[Round "05"]
[TimeControl "180+1"]
[Date "2022.08.16"]
[WhiteClock "0:00:03"]
[BlackClock "0:00:10"]

1. e4 {[%clk 0:03:00]}  e5 {[%clk 0:02:54]} 2. Nf3 {[%clk 0:03:01]}  Nc6 {[%clk 0:02:54]} 3. Nc3 {[%clk 0:03:01]}  Nf6 {[%clk 0:02:54]} 4. h3 {[%clk 0:03:02]}  Bb4 {[%clk 0:02:50]} 5. Nd5 {[%clk 0:03:01]}  Bc5 {[%clk 0:02:48]} 6. c3 {[%clk 0:02:45]}  O-O {[%clk 0:02:39]} 7. d4 {[%clk 0:02:28]}  exd4 {[%clk 0:02:40]} 8. cxd4 {[%clk 0:02:25]}  Nxd5 {[%clk 0:02:35]} 9. dxc5 {[%clk 0:02:24]}  Nf6 {[%clk 0:02:35]} 10. Bd3 {[%clk 0:02:13]}  Qe7 {[%clk 0:02:35]} 11. O-O {[%clk 0:02:06]}  Qxc5 {[%clk 0:02:30]} 12. Re1 {[%clk 0:02:01]}  d6 {[%clk 0:02:28]} 13. Bg5 {[%clk 0:01:59]}  Nd7 {[%clk 0:02:24]} 14. Rc1 {[%clk 0:01:56]}  Qa5 {[%clk 0:02:23]} 15. Bd2 {[%clk 0:01:25]}  Qh5 {[%clk 0:02:12]} 16. b4 {[%clk 0:00:59]}  a6 {[%clk 0:01:57]} 17. a4 {[%clk 0:00:59]}  a5 {[%clk 0:01:40]} 18. b5 {[%clk 0:00:58]}  Nb4 {[%clk 0:01:40]} 19. Bxb4 {[%clk 0:00:43]}  axb4 {[%clk 0:01:40]} 20. Rxc7 {[%clk 0:00:44]}  Nf6 {[%clk 0:01:23]} 21. Bc4 {[%clk 0:00:28]}  Qg6 {[%clk 0:00:45]} 22. e5 {[%clk 0:00:10]}  Ne8 {[%clk 0:00:44]} 23. Rxf7 {[%clk 0:00:06]}  Rxf7 {[%clk 0:00:41]} 24. exd6 {[%clk 0:00:06]}  Bxh3 {[%clk 0:00:17]} 25. g3 {[%clk 0:00:05]}  Qxd6 {[%clk 0:00:09]} 26. Rxe8+ {[%clk 0:00:02]}  Rxe8 {[%clk 0:00:10]} 27. Qxd6 {[%clk 0:00:03]} 1-0


[Site "https://www.chess.com"]

[Event "Titled Tuesday Blitz August 16 Late 2022"]
[White "Wu, Rochelle"]
[Black "Vagman, Roy"]
[WhiteFideId "30908132"]
[BlackFideId "2828995"]
[WhiteElo "2168"]
[BlackElo "1956"]
[Result "1-0"]
[Round "05"]
[TimeControl "180+1"]
[Date "2022.08.18"]
[WhiteClock "0:00:00"]
[BlackClock "0:00:00"]

1. Nf3 {[%clk 0:00:00]}  Nf6 {[%clk 0:00:00]} 2. g3 {[%clk 0:00:00]}  g6 {[%clk 0:00:00]} 3. Bg2 {[%clk 0:00:00]}  Bg7 {[%clk 0:00:00]} 4. O-O {[%clk 0:00:00]}  c5 {[%clk 0:00:00]} 5. d4 {[%clk 0:00:00]}  cxd4 {[%clk 0:00:00]} 6. Nxd4 {[%clk 0:00:00]}  O-O {[%clk 0:00:00]} 7. Nc3 {[%clk 0:00:00]}  Nc6 {[%clk 0:00:00]} 8. Nxc6 {[%clk 0:00:00]}  bxc6 {[%clk 0:00:00]} 9. e4 {[%clk 0:00:00]}  Qc7 {[%clk 0:00:00]} 10. Re1 {[%clk 0:00:00]}  d6 {[%clk 0:00:00]} 11. Bf4 {[%clk 0:00:00]}  Nh5 {[%clk 0:00:00]} 12. Bd2 {[%clk 0:00:00]}  Rb8 {[%clk 0:00:00]} 13. Rb1 {[%clk 0:00:00]}  Be6 {[%clk 0:00:00]} 14. Qe2 {[%clk 0:00:00]}  Rb7 {[%clk 0:00:00]} 15. f4 {[%clk 0:00:00]}  Rfb8 {[%clk 0:00:00]} 16. b3 {[%clk 0:00:00]}  Bd4+ {[%clk 0:00:00]} 17. Kh1 {[%clk 0:00:00]}  Nf6 {[%clk 0:00:00]} 18. f5 {[%clk 0:00:00]}  Bd7 {[%clk 0:00:00]} 19. Rbd1 {[%clk 0:00:00]}  Be5 {[%clk 0:00:00]} 20. g4 {[%clk 0:00:00]}  Be8 {[%clk 0:00:00]} 21. Bf3 {[%clk 0:00:00]}  Nd7 {[%clk 0:00:00]} 22. g5 {[%clk 0:00:00]}  Nc5 {[%clk 0:00:00]} 23. Qf2 {[%clk 0:00:00]}  Bd7 {[%clk 0:00:00]} 24. Bg2 {[%clk 0:00:00]}  Be8 {[%clk 0:00:00]} 25. Qh4 {[%clk 0:00:00]}  a5 {[%clk 0:00:00]} 26. f6 {[%clk 0:00:00]}  exf6 {[%clk 0:00:00]} 27. gxf6 {[%clk 0:00:00]}  Ne6 {[%clk 0:00:00]} 28. Rf1 {[%clk 0:00:00]}  Qd8 {[%clk 0:00:00]} 29. Bh3 {[%clk 0:00:00]}  Rb4 {[%clk 0:00:00]} 30. Bxe6 {[%clk 0:00:00]}  fxe6 {[%clk 0:00:00]} 31. Rf3 {[%clk 0:00:00]}  Bf7 {[%clk 0:00:00]} 32. Rdf1 {[%clk 0:00:00]}  d5 {[%clk 0:00:00]} 33. Rh3 {[%clk 0:00:00]}  h5 {[%clk 0:00:00]} 34. Qg5 {[%clk 0:00:00]}  Bxc3 {[%clk 0:00:00]} 35. Bxc3 {[%clk 0:00:00]}  Rxe4 {[%clk 0:00:00]} 36. Rxh5 {[%clk 0:00:00]}  Kf8 {[%clk 0:00:00]} 37. Rh8+ {[%clk 0:00:00]}  Bg8 {[%clk 0:00:00]} 38. Qh6+ {[%clk 0:00:00]}  Ke8 {[%clk 0:00:00]} 39. Rxg8+ {[%clk 0:00:00]}  Kd7 {[%clk 0:00:00]} 40. Rxd8+ {[%clk 0:00:00]}  Rxd8 {[%clk 0:00:00]} 41. f7 {[%clk 0:00:00]}  d4 {[%clk 0:00:00]} 42. Bxa5 {[%clk 0:00:00]}  Ra8 {[%clk 0:00:00]} 43. f8=Q {[%clk 0:00:00]}  Rxf8 {[%clk 0:00:00]} 44. Qxf8 {[%clk 0:00:00]}  e5 {[%clk 0:00:00]} 45. Rf7+ {[%clk 0:00:00]}  Ke6 {[%clk 0:00:00]} 46. Qe8+ {[%clk 0:00:00]}  Kd5 {[%clk 0:00:00]} 47. Rd7+ {[%clk 0:00:00]}  Kc5 {[%clk 0:00:00]} 48. Qe7+ {[%clk 0:00:00]}  Kb5 {[%clk 0:00:00]} 49. Qb4+ {[%clk 0:00:00]}  Ka6 {[%clk 0:00:00]} 50. Qb6# {[%clk 0:00:00]} 1-0


[Site "https://www.chess.com"]

[Event "Titled Tuesday Blitz August 16 Late 2022"]
[White "Yurovskykh, Oleksandr"]
[Black "Van Dael, Siem"]
[WhiteFideId "14134020"]
[BlackFideId "1049771"]
[WhiteElo "2292"]
[BlackElo "2110"]
[Result "1-0"]
[Round "05"]
[TimeControl "180+1"]
[Date "2022.08.18"]
[WhiteClock "0:00:00"]
[BlackClock "0:00:00"]

1. d4 {[%clk 0:00:00]}  Nf6 {[%clk 0:00:00]} 2. Nf3 {[%clk 0:00:00]}  g6 {[%clk 0:00:00]} 3. Bg5 {[%clk 0:00:00]}  Bg7 {[%clk 0:00:00]} 4. Nbd2 {[%clk 0:00:00]}  d5 {[%clk 0:00:00]} 5. e3 {[%clk 0:00:00]}  O-O {[%clk 0:00:00]} 6. Be2 {[%clk 0:00:00]}  Nbd7 {[%clk 0:00:00]} 7. O-O {[%clk 0:00:00]}  c6 {[%clk 0:00:00]} 8. c4 {[%clk 0:00:00]}  h6 {[%clk 0:00:00]} 9. Bh4 {[%clk 0:00:00]}  a6 {[%clk 0:00:00]} 10. Rc1 {[%clk 0:00:00]}  Qb6 {[%clk 0:00:00]} 11. Qc2 {[%clk 0:00:00]}  Re8 {[%clk 0:00:00]} 12. h3 {[%clk 0:00:00]}  e5 {[%clk 0:00:00]} 13. cxd5 {[%clk 0:00:00]}  Nxd5 {[%clk 0:00:00]} 14. Nc4 {[%clk 0:00:00]}  Qb4 {[%clk 0:00:00]} 15. a3 {[%clk 0:00:00]}  Qf8 {[%clk 0:00:00]} 16. dxe5 {[%clk 0:00:00]}  Nxe5 {[%clk 0:00:00]} 17. Nfxe5 {[%clk 0:00:00]}  Bxe5 {[%clk 0:00:00]} 18. Nxe5 {[%clk 0:00:00]}  Rxe5 {[%clk 0:00:00]} 19. Bg3 {[%clk 0:00:00]}  Bf5 {[%clk 0:00:00]} 20. Qb3 {[%clk 0:00:00]}  Ree8 {[%clk 0:00:00]} 21. Qxb7 {[%clk 0:00:00]}  Be4 {[%clk 0:00:00]} 22. Qb3 {[%clk 0:00:00]}  a5 {[%clk 0:00:00]} 23. f3 {[%clk 0:00:00]}  Bf5 {[%clk 0:00:00]} 24. e4 {[%clk 0:00:00]}  Bd7 {[%clk 0:00:00]} 25. exd5 {[%clk 0:00:00]}  Rxe2 {[%clk 0:00:00]} 26. dxc6 {[%clk 0:00:00]}  Be6 {[%clk 0:00:00]} 27. Qc3 {[%clk 0:00:00]}  Re8 {[%clk 0:00:00]} 28. Rfe1 {[%clk 0:00:00]}  Rxe1+ {[%clk 0:00:00]} 29. Rxe1 {[%clk 0:00:00]}  Rc8 {[%clk 0:00:00]} 30. b4 {[%clk 0:00:00]}  axb4 {[%clk 0:00:00]} 31. axb4 {[%clk 0:00:00]}  Qd8 {[%clk 0:00:00]} 32. c7 {[%clk 0:00:00]}  Qd5 {[%clk 0:00:00]} 33. Rc1 {[%clk 0:00:00]}  Qg5 {[%clk 0:00:00]} 34. Kh2 {[%clk 0:00:00]}  h5 {[%clk 0:00:00]} 35. Be5 {[%clk 0:00:00]}  Kh7 {[%clk 0:00:00]} 36. b5 {[%clk 0:00:00]}  Bd5 {[%clk 0:00:00]} 37. b6 {[%clk 0:00:00]}  h4 {[%clk 0:00:00]} 38. Rd1 {[%clk 0:00:00]}  Bb7 {[%clk 0:00:00]} 39. Qd4 {[%clk 0:00:00]}  Re8 {[%clk 0:00:00]} 40. Bf4 {[%clk 0:00:00]}  Qf5 {[%clk 0:00:00]} 41. Rd2 {[%clk 0:00:00]}  Rc8 {[%clk 0:00:00]} 42. Qd6 {[%clk 0:00:00]}  g5 {[%clk 0:00:00]} 43. Be5 {[%clk 0:00:00]}  Re8 {[%clk 0:00:00]} 44. Bb2 {[%clk 0:00:00]}  f6 {[%clk 0:00:00]} 45. Qd4 {[%clk 0:00:00]}  Qf4+ {[%clk 0:00:00]} 46. Qxf4 {[%clk 0:00:00]}  gxf4 {[%clk 0:00:00]} 47. Bxf6 {[%clk 0:00:00]}  Kg6 {[%clk 0:00:00]} 48. Bxh4 {[%clk 0:00:00]}  Rh8 {[%clk 0:00:00]} 49. Rd8 {[%clk 0:00:00]}  Rxh4 {[%clk 0:00:00]} 50. c8=Q {[%clk 0:00:00]}  Bxc8 {[%clk 0:00:00]} 51. Rxc8 {[%clk 0:00:00]}  Rh7 {[%clk 0:00:00]} 52. Rc7 {[%clk 0:00:00]}  Kf5 {[%clk 0:00:00]} 53. Rxh7 {[%clk 0:00:00]} 1-0


[Site "https://www.chess.com"]

[Event "Titled Tuesday Blitz August 16 Late 2022"]
[White "Zenin, Dmitry"]
[Black "Fernandez Hernandez, Gerardo"]
[WhiteFideId "4127897"]
[BlackFideId "2207400"]
[WhiteElo "2215"]
[BlackElo "2169"]
[Result "1-0"]
[Round "05"]
[TimeControl "180+1"]
[Date "2022.08.18"]
[WhiteClock "0:00:00"]
[BlackClock "0:00:00"]

1. d4 {[%clk 0:00:00]}  Nf6 {[%clk 0:00:00]} 2. c4 {[%clk 0:00:00]}  c5 {[%clk 0:00:00]} 3. d5 {[%clk 0:00:00]}  b5 {[%clk 0:00:00]} 4. cxb5 {[%clk 0:00:00]}  a6 {[%clk 0:00:00]} 5. bxa6 {[%clk 0:00:00]}  g6 {[%clk 0:00:00]} 6. Nc3 {[%clk 0:00:00]}  Bg7 {[%clk 0:00:00]} 7. Nf3 {[%clk 0:00:00]}  O-O {[%clk 0:00:00]} 8. g3 {[%clk 0:00:00]}  d6 {[%clk 0:00:00]} 9. Bg2 {[%clk 0:00:00]}  Nxa6 {[%clk 0:00:00]} 10. O-O {[%clk 0:00:00]}  Qb6 {[%clk 0:00:00]} 11. Ne1 {[%clk 0:00:00]}  Nd7 {[%clk 0:00:00]} 12. Nc2 {[%clk 0:00:00]}  Ne5 {[%clk 0:00:00]} 13. Ne3 {[%clk 0:00:00]}  Qb4 {[%clk 0:00:00]} 14. a3 {[%clk 0:00:00]}  Qa5 {[%clk 0:00:00]} 15. Rb1 {[%clk 0:00:00]}  Bd7 {[%clk 0:00:00]} 16. Bd2 {[%clk 0:00:00]}  Qb6 {[%clk 0:00:00]} 17. b4 {[%clk 0:00:00]}  c4 {[%clk 0:00:00]} 18. Qc2 {[%clk 0:00:00]}  Rfc8 {[%clk 0:00:00]} 19. Rfc1 {[%clk 0:00:00]}  Ra7 {[%clk 0:00:00]} 20. h3 {[%clk 0:00:00]}  g5 {[%clk 0:00:00]} 21. Kh2 {[%clk 0:00:00]}  h6 {[%clk 0:00:00]} 22. Be4 {[%clk 0:00:00]}  Raa8 {[%clk 0:00:00]} 23. Bf5 {[%clk 0:00:00]}  Bxf5 {[%clk 0:00:00]} 24. Nxf5 {[%clk 0:00:00]}  Qc7 {[%clk 0:00:00]} 25. Be3 {[%clk 0:00:00]}  Nb8 {[%clk 0:00:00]} 26. a4 {[%clk 0:00:00]}  e6 {[%clk 0:00:00]} 27. Nd4 {[%clk 0:00:00]} 1-0


[Site "https://www.chess.com"]

[Event "Titled Tuesday Blitz August 16 Late 2022"]
[White "Abdyzhapar, Asylbek"]
[Black "Martinez, Shawn"]
[WhiteFideId "13800337"]
[BlackFideId "2039770"]
[WhiteElo "2323"]
[BlackElo "2174"]
[Result "1/2-1/2"]
[Round "06"]
[TimeControl "180+1"]
[Date "2022.08.18"]
[WhiteClock "0:00:00"]
[BlackClock "0:00:00"]

1. Nf3 {[%clk 0:00:00]}  g6 {[%clk 0:00:00]} 2. c4 {[%clk 0:00:00]}  Bg7 {[%clk 0:00:00]} 3. d4 {[%clk 0:00:00]}  b6 {[%clk 0:00:00]} 4. Nc3 {[%clk 0:00:00]}  h6 {[%clk 0:00:00]} 5. e4 {[%clk 0:00:00]}  d6 {[%clk 0:00:00]} 6. Be2 {[%clk 0:00:00]}  Bb7 {[%clk 0:00:00]} 7. O-O {[%clk 0:00:00]}  a6 {[%clk 0:00:00]} 8. Be3 {[%clk 0:00:00]}  e6 {[%clk 0:00:00]} 9. Nd2 {[%clk 0:00:00]}  Nd7 {[%clk 0:00:00]} 10. f4 {[%clk 0:00:00]}  Ne7 {[%clk 0:00:00]} 11. Bd3 {[%clk 0:00:00]}  f5 {[%clk 0:00:00]} 12. d5 {[%clk 0:00:00]}  Nc5 {[%clk 0:00:00]} 13. Bxc5 {[%clk 0:00:00]}  bxc5 {[%clk 0:00:00]} 14. dxe6 {[%clk 0:00:00]}  O-O {[%clk 0:00:00]} 15. Nd5 {[%clk 0:00:00]}  Bxb2 {[%clk 0:00:00]} 16. Rb1 {[%clk 0:00:00]}  Bd4+ {[%clk 0:00:00]} 17. Kh1 {[%clk 0:00:00]}  Bc6 {[%clk 0:00:00]} 18. Nf3 {[%clk 0:00:00]}  Bg7 {[%clk 0:00:00]} 19. exf5 {[%clk 0:00:00]}  Bxd5 {[%clk 0:00:00]} 20. cxd5 {[%clk 0:00:00]}  Nxf5 {[%clk 0:00:00]} 21. Qe2 {[%clk 0:00:00]}  Qe7 {[%clk 0:00:00]} 22. g4 {[%clk 0:00:00]}  Nd4 {[%clk 0:00:00]} 23. Nxd4 {[%clk 0:00:00]}  Bxd4 {[%clk 0:00:00]} 24. Bxg6 {[%clk 0:00:00]}  Qg7 {[%clk 0:00:00]} 25. e7 {[%clk 0:00:00]}  Qxg6 {[%clk 0:00:00]} 26. exf8=Q+ {[%clk 0:00:00]}  Rxf8 {[%clk 0:00:00]} 27. f5 {[%clk 0:00:00]}  Qg5 {[%clk 0:00:00]} 28. Rb7 {[%clk 0:00:00]}  Rf7 {[%clk 0:00:00]} 29. Rb8+ {[%clk 0:00:00]}  Kh7 {[%clk 0:00:00]} 30. Qe6 {[%clk 0:00:00]}  Re7 {[%clk 0:00:00]} 31. Rg8 {[%clk 0:00:00]}  Bg7 {[%clk 0:00:00]} 32. Rxg7+ {[%clk 0:00:00]}  Qxg7 {[%clk 0:00:00]} 33. f6 {[%clk 0:00:00]}  Rxe6 {[%clk 0:00:00]} 34. dxe6 {[%clk 0:00:00]}  Qxg4 {[%clk 0:00:00]} 35. f7 {[%clk 0:00:00]}  Qe4+ {[%clk 0:00:00]} 36. Kg1 {[%clk 0:00:00]}  Qg4+ {[%clk 0:00:00]} 37. Kf2 {[%clk 0:00:00]}  Qf4+ {[%clk 0:00:00]} 38. Ke2 {[%clk 0:00:00]}  Qe4+ {[%clk 0:00:00]} 39. Kd2 {[%clk 0:00:00]}  Qd4+ {[%clk 0:00:00]} 40. Ke1 {[%clk 0:00:00]}  Qe3+ {[%clk 0:00:00]} 41. Kd1 {[%clk 0:00:00]}  Qd3+ {[%clk 0:00:00]} 42. Ke1 {[%clk 0:00:00]}  Qe3+ {[%clk 0:00:00]} 43. Kd1 {[%clk 0:00:00]}  Qd3+ {[%clk 0:00:00]} 44. Ke1 {[%clk 0:00:00]}  Qe3+ {[%clk 0:00:00]} 1/2-1/2


[Site "https://www.chess.com"]